Portfolio,Expense Area,Cost Centre,Expense Type,Account Code,Amount,Supplier Name,SupplierId,Pay Date,Transaction No.
Resources & Corporate Governance ,Toilet Cleaning,WBC01,Agency Staff,0003,9.24,Arco Limited,100015,14/06/2012,10168426
Resources & Corporate Governance ,Grounds Maintenance,WGM00,Agency Staff,0003,96.99,Arco Limited,100015,14/06/2012,10168426
Resources & Corporate Governance ,Highways,WHG00,Agency Staff,0003,13.86,Arco Limited,100015,14/06/2012,10168426
Resources & Corporate Governance ,Street Cleansing,WSC00,Agency Staff,0003,110.85,Arco Limited,100015,14/06/2012,10168426
Resources & Corporate Governance ,Garage Internal,WVR01,Agency Staff,0003,18.48,Arco Limited,100015,14/06/2012,10168426
Resources & Corporate Governance ,Domestic Waste Collection,WWC00,Agency Staff,0003,193.95,Arco Limited,100015,14/06/2012,10168426
Resources & Corporate Governance ,Trade Waste Collection,WWC01,Agency Staff,0003,18.48,Arco Limited,100015,14/06/2012,10168426
Resources & Corporate Governance ,Toilet Cleaning,WBC01,Materials,0303,16.18,Arco Limited,100015,14/06/2012,10168426
Resources & Corporate Governance ,General Administration,WAD00,Personal Protective Clothing,0340,91.63,Arco Limited,100015,21/06/2012,10169043
Resources & Corporate Governance ,Toilet Cleaning,WBC01,Personal Protective Clothing,0340,5.10,Arco Limited,100015,21/06/2012,10169043
Resources & Corporate Governance ,Grounds Maintenance,WGM00,Personal Protective Clothing,0340,136.07,Arco Limited,100015,21/06/2012,10169043
Resources & Corporate Governance ,Highways,WHG00,Personal Protective Clothing,0340,7.61,Arco Limited,100015,21/06/2012,10169043
Resources & Corporate Governance,Handy man,WHM00,Personal Protective Clothing,0340,20.95,Arco Limited,100015,21/06/2012,10169043
Resources & Corporate Governance ,Street Cleansing,WSC00,Personal Protective Clothing,0340,61.17,Arco Limited,100015,21/06/2012,10169043
Resources & Corporate Governance ,Garage Internal,WVR01,Personal Protective Clothing,0340,10.20,Arco Limited,100015,21/06/2012,10169043
Resources & Corporate Governance ,Domestic Waste Collection,WWC00,Personal Protective Clothing,0340,107.04,Arco Limited,100015,21/06/2012,10169043
Resources & Corporate Governance ,Trade Waste Collection,WWC01,Personal Protective Clothing,0340,10.20,Arco Limited,100015,21/06/2012,10169043
Resources & Corporate Governance ,Grounds Maintenance,WGM00,Vehicle Repair and Maintenance,0200,4.35,Arrow Engineering Supply Co Ltd,100016,14/06/2012,10168522
Resources & Corporate Governance ,Highways,WHG00,Vehicle Repair and Maintenance,0200,6.40,Arrow Engineering Supply Co Ltd,100016,14/06/2012,10168522
Resources & Corporate Governance ,Street Cleansing,WSC00,Vehicle Repair and Maintenance,0200,5.00,Arrow Engineering Supply Co Ltd,100016,14/06/2012,10168522
Resources & Corporate Governance ,Domestic Waste Collection,WWC00,Vehicle Repair and Maintenance,0200,272.86,Arrow Engineering Supply Co Ltd,100016,14/06/2012,10168522
Resources & Corporate Governance ,TREE WORKS,WGM01,Tools,0304,125.97,Arrow Engineering Supply Co Ltd,100016,14/06/2012,10168522
Resources & Corporate Governance ,Garage Internal,WVR01,Tools,0304,84.31,Arrow Engineering Supply Co Ltd,100016,14/06/2012,10168522
Resources & Corporate Governance ,Human Resources Centralised Services,RES31,Training fees,0011,1125.00,Association Of Building Engineers,100019,21/06/2012,10168872
Resources & Corporate Governance ,General Financial Services,GFS00,External Contractor & Operator,0742,9248.00,Audit Commission,100020,14/06/2012,10168828
Sustainable Inclusive Communities,Housing Options Team,HOT00,Rents,0140,874.00,Alma Lodge Hotel,100026,14/06/2012,10168517
Sustainable Environment ,Caldecott Park/Town Centre Area,PKS00,External Contractor & Operator,0742,562.00,Amberol Ltd,100043,07/06/2012,10168114
Housing Revenue Account ,Unplanned Maintenance and Repair,UMR00,R&M External Contractors,0100,1351.88,AWM Electrical Contractors Ltd,100051,07/06/2012,10167385
Housing Revenue Account ,Unplanned Maintenance and Repair,UMR00,R&M External Contractors,0100,1005.88,AWM Electrical Contractors Ltd,100051,07/06/2012,10167386
Housing Revenue Account ,Unplanned Maintenance and Repair,UMR00,R&M External Contractors,0100,733.36,AWM Electrical Contractors Ltd,100051,07/06/2012,10167611
Housing Revenue Account ,Unplanned Maintenance and Repair,UMR00,R&M External Contractors,0100,2200.00,AWM Electrical Contractors Ltd,100051,07/06/2012,10167612
Housing Revenue Account ,Unplanned Maintenance and Repair,UMR00,R&M External Contractors,0100,429.53,AWM Electrical Contractors Ltd,100051,07/06/2012,10168467
Capital Program ,Rewiring,HCE20,Capital Contract Payments,5000,2450.00,AWM Electrical Contractors Ltd,100051,07/06/2012,10168468
Housing Revenue Account ,Unplanned Maintenance and Repair,UMR00,R&M External Contractors,0100,875.07,AWM Electrical Contractors Ltd,100051,14/06/2012,10168739
Housing Revenue Account ,Unplanned Maintenance and Repair,UMR00,R&M External Contractors,0100,474.18,AWM Electrical Contractors Ltd,100051,14/06/2012,10168740
Capital Program ,Rewiring,HCE20,Capital Contract Payments,5000,2450.00,AWM Electrical Contractors Ltd,100051,14/06/2012,10168740
Housing Revenue Account ,Unplanned Maintenance and Repair,UMR00,R&M External Contractors,0100,598.99,AWM Electrical Contractors Ltd,100051,14/06/2012,10168741
Housing Revenue Account ,Unplanned Maintenance and Repair,UMR00,R&M External Contractors,0100,554.60,AWM Electrical Contractors Ltd,100051,28/06/2012,10169519
Housing Revenue Account ,Unplanned Maintenance and Repair,UMR00,R&M External Contractors,0100,1116.24,AWM Electrical Contractors Ltd,100051,28/06/2012,10169524
Capital Program ,Disabled Adaptations,HCR01,Capital Contract Payments,5000,234.92,AWM Electrical Contractors Ltd,100051,28/06/2012,10169524
Housing Revenue Account ,Unplanned Maintenance and Repair,UMR00,R&M External Contractors,0100,4617.48,Andy Woods Landscapes,100078,07/06/2012,10167388
Housing Revenue Account ,Unplanned Maintenance and Repair,UMR00,R&M External Contractors,0100,2084.08,Andy Woods Landscapes,100078,14/06/2012,10168742
Housing Revenue Account ,Unplanned Maintenance and Repair,UMR00,R&M External Contractors,0100,727.70,Andy Woods Landscapes,100078,14/06/2012,10168974
Housing Revenue Account ,Unplanned Maintenance and Repair,UMR00,R&M External Contractors,0100,998.59,Andy Woods Landscapes,100078,28/06/2012,10169357
Economy Development & Culture,Decrim. of Car Parking on street parking,DPE02,R&M External Contractors,0100,510.00,Cale Briparc Ltd,100158,28/06/2012,10169538
Resources & Corporate Governance,Corporate Property R&M,CPA01,R&M External Contractors,0100,550.00,Bowen Builders,100241,07/06/2012,10168463
Housing Revenue Account ,Unplanned Maintenance and Repair,UMR00,R&M External Contractors,0100,1098.21,Bowen Builders,100241,07/06/2012,10168464
Housing Revenue Account ,Unplanned Maintenance and Repair,UMR00,R&M External Contractors,0100,777.95,Bowen Builders,100241,14/06/2012,10168590
Resources & Corporate Governance,Handy man,WHM00,External Contractor & Operator,0742,625.75,Bowen Builders,100241,14/06/2012,10168708
Housing Revenue Account ,Unplanned Maintenance and Repair,UMR00,R&M External Contractors,0100,697.40,Bowen Builders,100241,14/06/2012,10168736
Housing Revenue Account ,Unplanned Maintenance and Repair,UMR00,R&M External Contractors,0100,2286.61,Bowen Builders,100241,14/06/2012,10168823
Housing Revenue Account ,Unplanned Maintenance and Repair,UMR00,R&M External Contractors,0100,2049.59,Bowen Builders,100241,28/06/2012,10169350
Capital Program ,Disabled Adaptations,HCR01,Capital Contract Payments,5000,382.96,Bowen Builders,100241,28/06/2012,10169350
Housing Revenue Account ,Unplanned Maintenance and Repair,UMR00,R&M External Contractors,0100,1744.40,Bowen Builders,100241,28/06/2012,10169526
Housing Revenue Account ,Unplanned Maintenance and Repair,UMR00,R&M External Contractors,0100,406.00,Bowen Builders,100241,28/06/2012,10169554
Capital Program ,Energy Efficiency,EGE00,Capital Contract Payments,5000,170.00,Bowen Builders,100241,28/06/2012,10169554
Housing Revenue Account ,Unplanned Maintenance and Repair,UMR00,R&M External Contractors,0100,480.45,Barron McCann Ltd,100248,28/06/2012,10169362
Housing Revenue Account ,Unplanned Maintenance and Repair,UMR00,R&M External Contractors,0100,2349.50,Barron McCann Ltd,100248,28/06/2012,10169529
Housing Revenue Account ,Unplanned Maintenance and Repair,UMR00,R&M External Contractors,0100,1291.00,Chillaire Service & Maintenance Ltd,100305,07/06/2012,10167904
Resources & Corporate Governance,Corporate Property R&M,CPA01,R&M External Contractors,0100,3185.00,Chillaire Service & Maintenance Ltd,100305,14/06/2012,10168570
Capital Program ,Parish and Rural Capital Spending,CGR03,Capital Grants,5014,8796.00,Church Lawford Parish Council,100306,14/06/2012,10168942
Resources & Corporate Governance ,IT Procurement,CMP00,IT Capital Expenditure,5025,574.00,Stone Computers,100390,14/06/2012,10168857
Sustainable Environment ,Clinical Waste,REF04,External Contractor & Operator,0742,513.02,OCS Group UK Ltd t/a Cannon,100436,21/06/2012,10169010
Sustainable Environment ,Clinical Waste,REF04,External Contractor & Operator,0742,603.40,OCS Group UK Ltd t/a Cannon,100436,21/06/2012,10169014
Sustainable Environment ,Caldecott Park/Town Centre Area,PKS00,R&M External Contractors,0100,1241.00,Chains & Lifting Tackle (Coventry) Ltd,100521,28/06/2012,10169159
Housing Revenue Account ,Unplanned Maintenance and Repair,UMR00,R&M External Contractors,0100,5213.12,JADA Building & Maintenance Services Ltd,100583,07/06/2012,10168466
Housing Revenue Account ,Estate Management,MAN22,Estates,0457,30.23,JADA Building & Maintenance Services Ltd,100583,07/06/2012,10168466
Capital Program ,Disabled Adaptations,HCR01,Capital Contract Payments,5000,14.96,JADA Building & Maintenance Services Ltd,100583,07/06/2012,10168466
Housing Revenue Account ,Unplanned Maintenance and Repair,UMR00,R&M External Contractors,0100,7341.87,JADA Building & Maintenance Services Ltd,100583,14/06/2012,10168824
Capital Program ,Disabled Adaptations,HCR01,Capital Contract Payments,5000,3394.49,JADA Building & Maintenance Services Ltd,100583,14/06/2012,10168824
Housing Revenue Account ,Unplanned Maintenance and Repair,UMR00,R&M External Contractors,0100,5596.72,JADA Building & Maintenance Services Ltd,100583,28/06/2012,10169428
Capital Program ,Fire Risk Assessment,HCE18,Capital Contract Payments,5000,149.64,JADA Building & Maintenance Services Ltd,100583,28/06/2012,10169428
Capital Program ,Disabled Adaptations,HCR01,Capital Contract Payments,5000,16.62,JADA Building & Maintenance Services Ltd,100583,28/06/2012,10169428
Housing Revenue Account ,Unplanned Maintenance and Repair,UMR00,R&M External Contractors,0100,2533.73,Lee Davies Decorating,100600,14/06/2012,10168745
Housing Revenue Account ,Repainting Schemes,UMR02,R&M External Contractors,0100,1794.13,Lee Davies Decorating,100600,14/06/2012,10168745
Housing Revenue Account ,Sheltered Housing Team,MAN21,Estates,0457,28.38,Lee Davies Decorating,100600,14/06/2012,10168745
Housing Revenue Account ,Estate Management,MAN22,Estates,0457,550.00,Lee Davies Decorating,100600,14/06/2012,10168745
Capital Program ,Parish and Rural Capital Spending,CGR03,Capital Grants,5014,2351.00,Easenhall Parish Council,100616,14/06/2012,10168936
Resources & Corporate Governance,Corporate Property Central Utilities,CPA02,Gas,0131,2117.02,ESPO,100641,21/06/2012,10168978
Resources & Corporate Governance ,Domestic Waste Collection,WWC00,Agency Staff,0003,467.78,First Personnel Group Plc,100807,28/06/2012,10162705
Resources & Corporate Governance ,Domestic Waste Collection,WWC00,Agency Staff,0003,586.58,First Personnel Group Plc,100807,28/06/2012,10162975
Resources & Corporate Governance ,Domestic Waste Collection,WWC00,Agency Staff,0003,594.00,First Personnel Group Plc,100807,28/06/2012,10163238
Resources & Corporate Governance ,Domestic Waste Collection,WWC00,Agency Staff,0003,586.58,First Personnel Group Plc,100807,28/06/2012,10163861
Resources & Corporate Governance ,Trade Waste Collection,WWC01,External Contractor & Operator,0742,920.00,Container Services UK Limited,100811,14/06/2012,10168599
,Balance Sheet,BS,Car Leasing Scheme,9244,-517.51,Lex Autolease Ltd,100844,14/06/2012,10167085
,Balance Sheet,BS,Car Leasing Scheme,9244,2235.97,Lex Autolease Ltd,100844,14/06/2012,10168732
Resources & Corporate Governance ,Domestic Waste Collection,WWC00,Vehicle Repair and Maintenance,0200,2140.43,FAUN Zoeller (UK) Ltd,100871,21/06/2012,10168901
Resources & Corporate Governance ,Town Hall,OFF00,Materials,0303,578.00,Greenham,100890,07/06/2012,10168525
Resources & Corporate Governance,Corporate Property R&M,CPA01,R&M External Contractors,0100,532.50,ThyssenKrupp Elevator UK,100985,21/06/2012,10169160
Housing Revenue Account ,Unplanned Maintenance and Repair,UMR00,R&M External Contractors,0100,895.36,B Hartwell Plumbers Ltd,100989,14/06/2012,10168975
Capital Program ,Bathroom Modifications,HIS01,Capital Contract Payments,5000,635.00,B Hartwell Plumbers Ltd,100989,14/06/2012,10168975
Resources & Corporate Governance ,Customer and Information Strategy,CIS10,Hardware Maintenance,0376,1650.00,Insite Ltd,101144,14/06/2012,10168461
Housing Revenue Account ,Control Centre (HRA),CCE00,New Equipment,0300,1595.00,Chubb Systems LTD,101154,21/06/2012,10168870
Resources & Corporate Governance ,General Financial Services,GFS00,Other Insurance Premiums,0440,1200.00,Jardine Lloyd Thompson,101192,21/06/2012,10169059
Sustainable Environment ,Caldecott Park/Town Centre Area,PKS00,External Contractor & Operator,0742,3250.00,Kernock Park Plants,101204,21/06/2012,10168869
Resources & Corporate Governance ,Grounds Maintenance,WGM00,External Contractor & Operator,0742,7484.00,K A Hicks,101216,14/06/2012,10168330
Resources & Corporate Governance ,Grounds Maintenance,WGM00,External Contractor & Operator,0742,7484.00,K A Hicks,101216,28/06/2012,10169375
Housing Revenue Account ,Unplanned Maintenance and Repair,UMR00,R&M External Contractors,0100,335.12,MBG Decorators (Rugby Ltd),101288,07/06/2012,10168471
Housing Revenue Account ,Repainting Schemes,UMR02,R&M External Contractors,0100,1753.36,MBG Decorators (Rugby Ltd),101288,07/06/2012,10168471
Housing Revenue Account ,Unplanned Maintenance and Repair,UMR00,R&M External Contractors,0100,434.92,MBG Decorators (Rugby Ltd),101288,14/06/2012,10168825
Housing Revenue Account ,Repainting Schemes,UMR02,R&M External Contractors,0100,1315.02,MBG Decorators (Rugby Ltd),101288,14/06/2012,10168825
Housing Revenue Account ,Unplanned Maintenance and Repair,UMR00,R&M External Contractors,0100,1614.63,MBG Decorators (Rugby Ltd),101288,28/06/2012,10169356
Housing Revenue Account ,Repainting Schemes,UMR02,R&M External Contractors,0100,4383.40,MBG Decorators (Rugby Ltd),101288,28/06/2012,10169356
Resources & Corporate Governance,Handy man,WHM00,Materials,0303,546.00,Melbros Ltd,101291,28/06/2012,10167781
Resources & Corporate Governance,Handy man,WHM00,Materials,0303,813.01,Melbros Ltd,101291,28/06/2012,10168634
Resources & Corporate Governance,Handy man,WHM00,External Contractor & Operator,0742,561.46,M W D Services Ltd,101293,28/06/2012,10168446
Resources & Corporate Governance ,Street Cleansing,WSC00,Vehicle Repair and Maintenance,0200,4515.72,Noden Truck Centre Ltd,101368,14/06/2012,10168375
Resources & Corporate Governance ,Domestic Waste Collection,WWC00,Vehicle Repair and Maintenance,0200,409.74,Noden Truck Centre Ltd,101368,28/06/2012,10169391
Resources & Corporate Governance ,Domestic Waste Collection,WWC00,Contract Hire,0220,29.47,Noden Truck Centre Ltd,101368,28/06/2012,10169391
Economy Development & Culture,Visitor Centre,VSC00,Events Tickets - Zero Rated,1405,1115.69,National Express Ltd,101392,07/06/2012,10168473
Capital Program ,Private Sector Decent Home Improvements,REN00,Other Agencies,0734,17500.00,Orbit Group Limited,101414,28/06/2012,10169520
Economy Development & Culture,Car Parks General,CPK01,Vehicle Running Costs,0201,24.00,Post Office Ltd,101429,14/06/2012,10168601
Economy Development & Culture,Decrim. of Car Parking on street parking,DPE02,Vehicle Running Costs,0201,96.00,Post Office Ltd,101429,14/06/2012,10168601
Resources & Corporate Governance ,Highways,WHG00,Vehicle Running Costs,0201,165.00,Post Office Ltd,101429,14/06/2012,10168601
Resources & Corporate Governance ,Domestic Waste Collection,WWC00,Vehicle Running Costs,0201,650.00,Post Office Ltd,101429,14/06/2012,10168601
Sustainable Inclusive Communities,Sewage Disposal Plant,SDP00,R&M External Contractors,0100,520.28,PJT Pumping Services,101438,28/06/2012,10167606
Sustainable Environment ,Caldecott Park/Town Centre Area,PKS00,R&M External Contractors,0100,512.52,PJT Pumping Services,101438,21/06/2012,10169221
Sustainable Inclusive Communities,Sewage Disposal Plant,SDP00,R&M External Contractors,0100,520.28,PJT Pumping Services,101438,28/06/2012,10169225
Sustainable Inclusive Communities,Woodside Park,TVR00,Electricity,0130,1872.55,E.ON,101479,07/06/2012,10168384
Housing Revenue Account ,Unplanned Maintenance and Repair,UMR00,R&M External Contractors,0100,677.18,Reeds Plumbing & Heating Contractors Ltd,101504,14/06/2012,10168826
Resources & Corporate Governance ,Garage Internal,WVR01,Materials,0303,455.20,Rencar Services,101505,14/06/2012,10168484
Housing Revenue Account ,Supervision and Management General,MAN00,Council Tax,0142,871.12,Rugby Borough Council,101516,07/06/2012,10168396
Resources & Corporate Governance,Central Business Support Services,CSS15,Postage & Distribution,0370,101.28,Royal Mail,101554,07/06/2012,10167766
Resources & Corporate Governance ,Electoral Registration,ERG00,Postage & Distribution,0370,943.12,Royal Mail,101554,07/06/2012,10167766
Economy Development & Culture,Art Gallery and Museum,AGM00,Postage & Distribution,0370,1.76,Royal Mail,101554,14/06/2012,10168287
Economy Development & Culture,Building Control Services,BCS00,Postage & Distribution,0370,1.93,Royal Mail,101554,14/06/2012,10168287
Economy Development & Culture,Building Regulation Fee Earning Account,BCS99,Postage & Distribution,0370,2.56,Royal Mail,101554,14/06/2012,10168287
Economy Development & Culture,Car Parks General,CPK01,Postage & Distribution,0370,44.24,Royal Mail,101554,14/06/2012,10168287
Resources & Corporate Governance,Central Business Support Services,CSS15,Postage & Distribution,0370,591.92,Royal Mail,101554,14/06/2012,10168287
Resources & Corporate Governance ,Council Tax and NNDR Collection,CTX01,Postage & Distribution,0370,673.08,Royal Mail,101554,14/06/2012,10168287
Economy Development & Culture,Decrim. of Car Parking on street parking,DPE02,Postage & Distribution,0370,176.95,Royal Mail,101554,14/06/2012,10168287
Resources & Corporate Governance ,Electoral Registration,ERG00,Postage & Distribution,0370,19.33,Royal Mail,101554,14/06/2012,10168287
Sustainable Inclusive Communities,Housing Benefit Administration,HBA00,Postage & Distribution,0370,181.33,Royal Mail,101554,14/06/2012,10168287
Housing Revenue Account ,Supervision and Management General,MAN00,Postage & Distribution,0370,84.31,Royal Mail,101554,14/06/2012,10168287
Economy Development & Culture,Planning General/Income,PLN00,Postage & Distribution,0370,147.10,Royal Mail,101554,14/06/2012,10168287
Economy Development & Culture,Visitor Centre,VSC00,Postage & Distribution,0370,6.96,Royal Mail,101554,14/06/2012,10168287
Resources & Corporate Governance ,General Administration,WAD00,Postage & Distribution,0370,32.51,Royal Mail,101554,14/06/2012,10168287
Resources & Corporate Governance,Handy man,WHM00,External Contractor & Operator,0742,3137.00,Rugby Plastering Services,101602,07/06/2012,10168046
Housing Revenue Account ,Unplanned Maintenance and Repair,UMR00,R&M External Contractors,0100,2880.16,Rugby Plastering Services,101602,14/06/2012,10168746
Resources & Corporate Governance,Handy man,WHM00,External Contractor & Operator,0742,1518.00,Rugby Plastering Services,101602,14/06/2012,10168758
Sustainable Environment ,Caldecott Park/Town Centre Area,PKS00,External Contractor & Operator,0742,609.76,Sapcote Site Supplies Ltd,101606,07/06/2012,10168155
Resources & Corporate Governance,Corporate Property Central Utilities,CPA02,Water Services,0143,2499.69,Severn Trent Water Ltd,101610,14/06/2012,10168579
Housing Revenue Account ,Lesley Souter House AP,AGP16,Water Services,0143,1634.10,Severn Trent Water Ltd,101610,14/06/2012,10168717
Capital Program ,Disabled Adaptations,HCR01,Capital Contract Payments,5000,5666.90,Stannah Stairlifts Ltd,101623,07/06/2012,10168385
Resources & Corporate Governance ,Human Resources Centralised Services,RES31,Training fees,0011,546.67,Stannah Stairlifts Ltd,101623,14/06/2012,10168827
Capital Program ,Disabled Adaptations,HCR01,Capital Contract Payments,5000,1442.00,Stannah Stairlifts Ltd,101623,28/06/2012,10169060
Capital Program ,RG Disabled Facilities,REN01,Capital Grants,5014,1955.00,Stannah Stairlifts Ltd,101623,28/06/2012,10169263
Capital Program ,RG Disabled Facilities,REN01,Capital Grants,5014,4025.00,Stannah Stairlifts Ltd,101623,28/06/2012,10169264
Capital Program ,RG Disabled Facilities,REN01,Capital Grants,5014,4620.23,Stannah Stairlifts Ltd,101623,28/06/2012,10169332
Sustainable Environment ,Grass Cutting,PKS13,External Contractor & Operator,0742,511.00,Thurlaston Parish Council,101726,28/06/2012,10169387
Resources & Corporate Governance ,Domestic Waste Collection,WWC00,Vehicle Running Costs,0201,196.00,HI-Q Motorway,101736,21/06/2012,10168838
Resources & Corporate Governance ,Trade Waste Collection,WWC01,Vehicle Running Costs,0201,588.00,HI-Q Motorway,101736,21/06/2012,10168838
Resources & Corporate Governance ,Domestic Waste Collection,WWC00,Vehicle Running Costs,0201,557.40,HI-Q Motorway,101736,21/06/2012,10168839
Resources & Corporate Governance ,Trade Waste Collection,WWC01,Vehicle Running Costs,0201,112.00,HI-Q Motorway,101736,21/06/2012,10168839
Resources & Corporate Governance ,Domestic Waste Collection,WWC00,Vehicle Running Costs,0201,686.74,HI-Q Motorway,101736,28/06/2012,10169174
Resources & Corporate Governance ,Trade Waste Collection,WWC01,Vehicle Running Costs,0201,369.37,HI-Q Motorway,101736,28/06/2012,10169174
Resources & Corporate Governance ,Domestic Waste Collection,WWC00,Materials,0303,3571.95,Egbert H. Taylor & Co Ltd,101741,21/06/2012,10169096
Sustainable Environment ,Crime and Disorder Activities,CAD00,Development Activities,0450,1347.29,Warwickshire County Council,101841,14/06/2012,10168519
Sustainable Environment ,Caldecott Park/Town Centre Area,PKS00,External Contractor & Operator,0742,500.00,Warwickshire Wildlife Trust (Rugby Area Group),101864,14/06/2012,10168600
Resources & Corporate Governance ,Human Resources Centralised Services,RES31,Training fees,0011,789.00,West Midlands Councils,101880,14/06/2012,10168299
Resources & Corporate Governance ,Human Resources Centralised Services,RES31,Training fees,0011,789.00,West Midlands Councils,101880,14/06/2012,10168300
Sustainable Inclusive Communities,Housing Strategy & Enabling,HSE00,Grants To Voluntary Organisations,0720,2052.00,Warwickshire County Council,101893,21/06/2012,10168305
Resources & Corporate Governance,Handy man,WHM00,External Contractor & Operator,0742,2749.00,Darren Wilson Roofing Ltd,101911,14/06/2012,10168602
Resources & Corporate Governance,Handy man,WHM00,External Contractor & Operator,0742,2443.00,Darren Wilson Roofing Ltd,101911,14/06/2012,10168603
Resources & Corporate Governance,Handy man,WHM00,External Contractor & Operator,0742,1502.00,Darren Wilson Roofing Ltd,101911,14/06/2012,10168935
Resources & Corporate Governance ,Domestic Waste Collection,WWC00,Vehicle Repair and Maintenance,0200,1385.00,Watling JCB Limited,101922,07/06/2012,10168113
Resources & Corporate Governance ,Domestic Waste Collection,WWC00,Vehicle Repair and Maintenance,0200,706.20,Watling JCB Limited,101922,21/06/2012,10169104
Capital Program ,Heating Upgrades,HIM01,Capital Contract Payments,5000,8111.25,Adroit Services Ltd,101939,07/06/2012,10167872
Capital Program ,Electric to Gas Conversions,HIM04,Capital Contract Payments,5000,2267.37,Adroit Services Ltd,101939,14/06/2012,10168476
Housing Revenue Account ,Unplanned Maintenance and Repair,UMR00,R&M External Contractors,0100,1129.08,Adroit Services Ltd,101939,14/06/2012,10168592
Housing Revenue Account ,Unplanned Maintenance and Repair,UMR00,R&M External Contractors,0100,1078.54,Adroit Services Ltd,101939,28/06/2012,10169354
Housing Revenue Account ,Unplanned Maintenance and Repair,UMR00,R&M External Contractors,0100,1083.73,Adroit Services Ltd,101939,28/06/2012,10169355
Capital Program ,Pettiver Crescent,PCH00,Capital Contract Payments,5000,105.07,Adroit Services Ltd,101939,28/06/2012,10169355
Resources & Corporate Governance,Handy man,WHM00,Materials,0303,1234.99,BURDENS LTD,102070,21/06/2012,10168378
Resources & Corporate Governance ,"Communications, Consultation and Information Team",BTR20,Publicity & Marketing,0377,443.52,Johnston Publishing Ltd,107468,07/06/2012,10168307
Resources & Corporate Governance ,"Communications, Consultation and Information Team",BTR20,Publicity & Marketing,0377,530.19,Johnston Publishing Ltd,107468,07/06/2012,10168351
Resources & Corporate Governance ,"Communications, Consultation and Information Team",BTR20,Publicity & Marketing,0377,530.19,Johnston Publishing Ltd,107468,07/06/2012,10168352
Resources & Corporate Governance ,"Communications, Consultation and Information Team",BTR20,Publicity & Marketing,0377,476.86,Johnston Publishing Ltd,107468,14/06/2012,10168573
Economy Development & Culture,Economic Development General,ECD00,Development Activities,0450,1856.52,Johnston Publishing Ltd,107468,28/06/2012,10169068
Resources & Corporate Governance ,"Communications, Consultation and Information Team",BTR20,Publicity & Marketing,0377,530.19,Johnston Publishing Ltd,107468,21/06/2012,10169070
Resources & Corporate Governance ,"Communications, Consultation and Information Team",BTR20,Publicity & Marketing,0377,530.19,Johnston Publishing Ltd,107468,21/06/2012,10169072
Resources & Corporate Governance ,"Communications, Consultation and Information Team",BTR20,Publicity & Marketing,0377,530.19,Johnston Publishing Ltd,107468,28/06/2012,10169401
Resources & Corporate Governance ,Street Cleansing,WSC00,Vehicle Repair and Maintenance,0200,684.90,Scarab Sweepers Ltd,108252,14/06/2012,10168534
Resources & Corporate Governance ,Central Telephone Service,TEL00,Telephone Expenses,0371,1034.27,British Telecommunications PLC,108425,07/06/2012,10167934
Resources & Corporate Governance ,Central Telephone Service,TEL00,Telephone Expenses,0371,632.40,British Telecommunications PLC,108425,28/06/2012,10169344
,Balance Sheet,BS,Car Loan Scheme,9261,7000.00,REDACTED PERSONAL DATA,108866,21/06/2012,10169141
Sustainable Environment ,Crime and Disorder Activities,CAD00,Other Miscellaneous Expenses,0444,1000.00,CSWP Ltd,109679,21/06/2012,10169021
Sustainable Environment ,Crime and Disorder Activities,CAD00,Other Miscellaneous Expenses,0444,1000.00,CSWP Ltd,109679,21/06/2012,10169022
Economy Development & Culture,Visitor Centre,VSC00,Events Tickets - Standard Rated,1404,822.00,Rugby Dunsmore Rotary Club,109893,14/06/2012,10168989
Resources & Corporate Governance ,Garage Internal,WVR01,Materials,0303,31207.11,Watson Petroleum,110361,14/06/2012,10168933
Resources & Corporate Governance,Corporate Property R&M,CPA01,R&M External Contractors,0100,470.25,Croxford Electrical,110451,07/06/2012,10168349
Resources & Corporate Governance ,Domestic Waste Collection,WWC00,Vehicle Running Costs,0201,560.00,DVLA,111540,14/06/2012,10168820
Housing Revenue Account ,Unplanned Maintenance and Repair,UMR00,R&M External Contractors,0100,708.00,Dampco,111839,07/06/2012,10168392
Housing Revenue Account ,Unplanned Maintenance and Repair,UMR00,R&M External Contractors,0100,802.00,Dampco,111839,07/06/2012,10168395
Resources & Corporate Governance ,Maintenance of Customer Services Systems,CIS21,Training fees,0011,875.00,Civica UK Ltd,112724,14/06/2012,10167740
Economy Development & Culture,Play Projects (revenue),LSD09,Postage & Distribution,0370,8.00,Bishop Sports and Leisure,112869,14/06/2012,10168369
Economy Development & Culture,Play Projects (revenue),LSD09,Development Activities,0450,438.06,Bishop Sports and Leisure,112869,14/06/2012,10168369
Resources & Corporate Governance ,Domestic Waste Collection,WWC00,Agency Staff,0003,508.37,Extra Personnel Limited,112996,07/06/2012,10168122
Resources & Corporate Governance ,Domestic Waste Collection,WWC00,Agency Staff,0003,508.37,Extra Personnel Limited,112996,07/06/2012,10168485
Resources & Corporate Governance ,Domestic Waste Collection,WWC00,Agency Staff,0003,1122.96,Extra Personnel Limited,112996,14/06/2012,10168759
Resources & Corporate Governance ,Domestic Waste Collection,WWC00,Agency Staff,0003,598.77,Extra Personnel Limited,112996,14/06/2012,10168799
Resources & Corporate Governance ,Domestic Waste Collection,WWC00,Agency Staff,0003,664.05,Extra Personnel Limited,112996,21/06/2012,10169098
Economy Development & Culture,Ken Marriott Leisure Centre,KML00,External Contractor & Operator,0742,26931.10,DC Leisure Management Ltd (Otium),114443,14/06/2012,10168729
Housing Revenue Account ,Unplanned Maintenance and Repair,UMR00,R&M External Contractors,0100,1341.40,Temple Lifts Ltd,114738,21/06/2012,10168405
Resources & Corporate Governance ,WSU Depot,WDP00,Messing Facilities,0332,528.80,Siemens Financial Services Ltd,116057,28/06/2012,10169218
Resources & Corporate Governance ,Grounds Maintenance,WGM00,Contract Hire,0220,420.00,T H White Ltd,116311,21/06/2012,10169140
Resources & Corporate Governance ,"Communications, Consultation and Information Team",BTR20,Publicity & Marketing,0377,722.50,The Good Travel Guide Ltd,116726,28/06/2012,10169422
Sustainable Environment ,Crime and Disorder Activities,CAD00,Other Miscellaneous Expenses,0444,696.50,Wolston Leisure & Community Centre,117117,21/06/2012,10169008
Resources & Corporate Governance ,Domestic Waste Collection,WWC00,Vehicle Repair and Maintenance,0200,1174.85,Farid Municipal Vehicles Limited,118309,14/06/2012,10168296
Resources & Corporate Governance ,Domestic Waste Collection,WWC00,Vehicle Repair and Maintenance,0200,956.88,Farid Municipal Vehicles Limited,118309,21/06/2012,10168859
Sustainable Environment ,Caldecott Park/Town Centre Area,PKS00,External Contractor & Operator,0742,895.00,R Butler,118695,21/06/2012,10169002
Resources & Corporate Governance,Corporate Property Central Utilities,CPA02,Electricity,0130,8901.95,Southern Electric,118976,21/06/2012,10168993
Economy Development & Culture,Positive Futures,LSD04,Development Activities,0450,520.00,Overslade Community Association,119698,14/06/2012,10168878
Resources & Corporate Governance,Handy man,WHM00,Agency Staff,0003,61.50,G-Staff Ltd,120173,07/06/2012,10168214
Resources & Corporate Governance ,Street Cleansing,WSC00,Agency Staff,0003,74.78,G-Staff Ltd,120173,07/06/2012,10168214
Resources & Corporate Governance ,Domestic Waste Collection,WWC00,Agency Staff,0003,634.24,G-Staff Ltd,120173,07/06/2012,10168214
Resources & Corporate Governance ,Trade Waste Collection,WWC01,Agency Staff,0003,541.03,G-Staff Ltd,120173,07/06/2012,10168214
Resources & Corporate Governance,Handy man,WHM00,Agency Staff,0003,118.90,G-Staff Ltd,120173,07/06/2012,10168437
Resources & Corporate Governance ,Street Cleansing,WSC00,Agency Staff,0003,137.16,G-Staff Ltd,120173,07/06/2012,10168437
Resources & Corporate Governance ,Domestic Waste Collection,WWC00,Agency Staff,0003,1354.65,G-Staff Ltd,120173,07/06/2012,10168437
Resources & Corporate Governance ,Street Cleansing,WSC00,Agency Staff,0003,61.50,G-Staff Ltd,120173,14/06/2012,10168757
Resources & Corporate Governance ,Domestic Waste Collection,WWC00,Agency Staff,0003,1176.67,G-Staff Ltd,120173,14/06/2012,10168757
Resources & Corporate Governance ,Toilet Cleaning,WBC01,Agency Staff,0003,276.90,G-Staff Ltd,120173,21/06/2012,10169093
Resources & Corporate Governance ,Domestic Waste Collection,WWC00,Agency Staff,0003,2277.66,G-Staff Ltd,120173,21/06/2012,10169093
Resources & Corporate Governance ,Toilet Cleaning,WBC01,Agency Staff,0003,118.70,G-Staff Ltd,120173,28/06/2012,10169366
Resources & Corporate Governance,Handy man,WHM00,Agency Staff,0003,180.40,G-Staff Ltd,120173,28/06/2012,10169366
Resources & Corporate Governance ,Street Cleansing,WSC00,Agency Staff,0003,280.84,G-Staff Ltd,120173,28/06/2012,10169366
Resources & Corporate Governance ,Domestic Waste Collection,WWC00,Agency Staff,0003,1630.68,G-Staff Ltd,120173,28/06/2012,10169366
Sustainable Inclusive Communities,Housing Options Team,HOT00,Agency Staff,0003,736.96,Venn Group Recruitment Solutions,121594,14/06/2012,10167759
Sustainable Inclusive Communities,Housing Options Team,HOT00,Agency Staff,0003,869.38,Venn Group Recruitment Solutions,121594,14/06/2012,10168078
Sustainable Inclusive Communities,Housing Options Team,HOT00,Agency Staff,0003,852.11,Venn Group Recruitment Solutions,121594,14/06/2012,10168390
Sustainable Inclusive Communities,Housing Options Team,HOT00,Agency Staff,0003,863.63,Venn Group Recruitment Solutions,121594,14/06/2012,10168698
Sustainable Inclusive Communities,Housing Options Team,HOT00,Agency Staff,0003,869.38,Venn Group Recruitment Solutions,121594,14/06/2012,10168699
Capital Program ,Housing Management System,HCE08,IT Capital Expenditure,5025,-475.00,Northgate Information Solutions UK Ltd,121606,28/06/2012,10168575
Resources & Corporate Governance ,Maintenance of Customer Services Systems,CIS21,Software Maintenance,0374,1033.00,Northgate Information Solutions UK Ltd,121606,28/06/2012,10169423
Housing Revenue Account ,Supervision and Management General,MAN00,Subscriptions,0421,720.00,HQN Limited,122890,28/06/2012,10169365
Sustainable Environment ,Caldecott Park/Town Centre Area,PKS00,Maintenance of Equipment,0301,798.73,Proludic,123148,07/06/2012,10168003
Resources & Corporate Governance ,Central Telephone Service,TEL00,Telephone Expenses,0371,1138.98,Cable & Wireless,123224,14/06/2012,10168960
Resources & Corporate Governance ,Grounds Maintenance,WGM00,Materials,0303,1220.00,Rigby Taylor Ltd,123342,07/06/2012,10168190
Resources & Corporate Governance ,"Communications, Consultation and Information Team",BTR20,Publicity & Marketing,0377,880.00,Krishna Enterprises Ltd,123590,21/06/2012,10168867
Resources & Corporate Governance ,Garage Internal,WVR01,Materials,0303,610.51,Shell U.K. Oil Products Limited,125672,07/06/2012,10168506
Resources & Corporate Governance ,Legal Services,DEM20,External Legal Costs,0741,1092.00,Eversheds,126086,28/06/2012,10167309
Resources & Corporate Governance ,Grounds Maintenance,WGM00,Vehicle Running Costs,0201,215.00,Guest Trucks,126437,21/06/2012,10169254
Capital Program ,Purchase of Vehicles,VHC00,Miscellaneous Capital Expenditure,5020,7850.00,Guest Trucks,126437,21/06/2012,10169254
Resources & Corporate Governance ,Garage Internal,WVR01,Vehicle Repair and Maintenance,0200,210.65,Compressor & Vehicle Lift Services Ltd,126546,21/06/2012,10168851
Resources & Corporate Governance ,Garage Internal,WVR01,Tools,0304,3285.00,Compressor & Vehicle Lift Services Ltd,126546,21/06/2012,10168851
Resources & Corporate Governance,Handy man,WHM00,External Contractor & Operator,0742,699.00,M P Hudson & Son,129334,14/06/2012,10168887
Resources & Corporate Governance,Handy man,WHM00,External Contractor & Operator,0742,580.00,M P Hudson & Son,129334,21/06/2012,10169213
Resources & Corporate Governance,Handy man,WHM00,External Contractor & Operator,0742,1059.10,M P Hudson & Son,129334,28/06/2012,10169474
Resources & Corporate Governance,Central Business Support Services,CSS15,Stationery Supplies,0350,414.37,Lyreco,129956,14/06/2012,10168762
Resources & Corporate Governance ,"Communications, Consultation and Information Team",BTR20,Publicity & Marketing,0377,3.60,Lyreco,129956,14/06/2012,10168762
Housing Revenue Account ,Estate Management,MAN22,Estates,0457,35.00,Lyreco,129956,14/06/2012,10168762
Resources & Corporate Governance,Central Business Support Services,CSS15,Hospitality,0331,21.72,Lyreco,129956,14/06/2012,10168764
Resources & Corporate Governance,Central Business Support Services,CSS15,Stationery Supplies,0350,457.22,Lyreco,129956,14/06/2012,10168764
Sustainable Environment ,Caldecott Park/Town Centre Area,PKS00,R&M External Contractors,0100,1197.00,I D Welding & Fabrications,131407,14/06/2012,10168521
Economy Development & Culture,Car Parks General,CPK01,Cash Collection,0744,953.52,Jade Security Services Ltd,131711,14/06/2012,10168730
Economy Development & Culture,Decrim. of Car Parking on street parking,DPE02,Cash Collection,0744,717.88,Jade Security Services Ltd,131711,14/06/2012,10168731
Economy Development & Culture,Car Parks General,CPK01,Training fees,0011,679.00,Alpha Parking Ltd,131720,21/06/2012,10169265
Economy Development & Culture,Decrim. of Car Parking on street parking,DPE02,Training fees,0011,2716.00,Alpha Parking Ltd,131720,21/06/2012,10169265
Capital Program ,RG Disabled Facilities,REN01,Capital Grants,5014,3223.00,D K Builders,131946,28/06/2012,10169226
Housing Revenue Account ,Unplanned Maintenance and Repair,UMR00,R&M External Contractors,0100,1371.20,Wilson Electrics,132051,07/06/2012,10168469
Housing Revenue Account ,Unplanned Maintenance and Repair,UMR00,R&M External Contractors,0100,875.00,Wilson Electrics,132051,14/06/2012,10168737
Economy Development & Culture,Economic Development General,ECD00,External Contractor & Operator,0742,10000.00,Rugby First Ltd - BID,133176,14/06/2012,10168501
Resources & Corporate Governance ,Highways,WHG00,Materials,0303,1167.52,Breedon Aggregates England Limited,133309,21/06/2012,10168847
Resources & Corporate Governance,Handy man,WHM00,External Contractor & Operator,0742,558.59,Homecare Decorating,133884,07/06/2012,10168451
Resources & Corporate Governance,Handy man,WHM00,External Contractor & Operator,0742,741.15,Homecare Decorating,133884,07/06/2012,10168454
Resources & Corporate Governance,Handy man,WHM00,External Contractor & Operator,0742,899.00,Homecare Decorating,133884,14/06/2012,10168710
Resources & Corporate Governance,Handy man,WHM00,External Contractor & Operator,0742,525.00,Homecare Decorating,133884,14/06/2012,10168711
Resources & Corporate Governance,Handy man,WHM00,External Contractor & Operator,0742,899.00,Homecare Decorating,133884,14/06/2012,10168712
Housing Revenue Account ,Unplanned Maintenance and Repair,UMR00,R&M External Contractors,0100,822.13,Sunfish Services Ltd,133886,14/06/2012,10168591
Sustainable Inclusive Communities,Woodside Park,TVR00,R&M External Contractors,0100,9.28,Delec Ltd,133887,07/06/2012,10168472
Housing Revenue Account ,Unplanned Maintenance and Repair,UMR00,R&M External Contractors,0100,2229.28,Delec Ltd,133887,07/06/2012,10168472
Capital Program ,Fire Risk Assessment,HCE18,Capital Contract Payments,5000,18.55,Delec Ltd,133887,07/06/2012,10168472
Housing Revenue Account ,Unplanned Maintenance and Repair,UMR00,R&M External Contractors,0100,593.69,Delec Ltd,133887,14/06/2012,10168593
Housing Revenue Account ,Alfred Green Close AP,AGP01,R&M Materials & Consumables,0102,55.00,Delec Ltd,133887,14/06/2012,10168593
Housing Revenue Account ,Avon Court AP,AGP02,R&M Materials & Consumables,0102,35.00,Delec Ltd,133887,14/06/2012,10168593
Housing Revenue Account ,Dickinson Court AP,AGP03,R&M Materials & Consumables,0102,35.00,Delec Ltd,133887,14/06/2012,10168593
Housing Revenue Account ,Frederick Press Way AP,AGP06,R&M Materials & Consumables,0102,47.50,Delec Ltd,133887,14/06/2012,10168593
Housing Revenue Account ,Pettiver Crescent I AP,AGP10,R&M Materials & Consumables,0102,45.00,Delec Ltd,133887,14/06/2012,10168593
Housing Revenue Account ,Stacey Court AP,AGP12,R&M Materials & Consumables,0102,45.00,Delec Ltd,133887,14/06/2012,10168593
Housing Revenue Account ,Stretton Court AP,AGP13,R&M Materials & Consumables,0102,27.50,Delec Ltd,133887,14/06/2012,10168593
Housing Revenue Account ,Sun Street/Windsor Street AP,AGP14,R&M Materials & Consumables,0102,27.50,Delec Ltd,133887,14/06/2012,10168593
Housing Revenue Account ,Lesley Souter House AP,AGP16,R&M Materials & Consumables,0102,45.00,Delec Ltd,133887,14/06/2012,10168593
Housing Revenue Account ,Tanser Court AP,AGP17,R&M Materials & Consumables,0102,82.50,Delec Ltd,133887,14/06/2012,10168593
Housing Revenue Account ,Albert Square AP,AGP20,R&M Materials & Consumables,0102,102.50,Delec Ltd,133887,14/06/2012,10168593
Housing Revenue Account ,Eliot Court AP,AGP25,R&M Materials & Consumables,0102,112.50,Delec Ltd,133887,14/06/2012,10168593
Housing Revenue Account ,Edmondson Close Dunchurch AP,AGP44,R&M Materials & Consumables,0102,17.50,Delec Ltd,133887,14/06/2012,10168593
Housing Revenue Account ,Harold Cox Place AP,AGP51,R&M Materials & Consumables,0102,5.00,Delec Ltd,133887,14/06/2012,10168593
Capital Program ,Fire Risk Assessment,HCE18,Capital Contract Payments,5000,4413.61,Delec Ltd,133887,14/06/2012,10168593
Housing Revenue Account ,Unplanned Maintenance and Repair,UMR00,R&M External Contractors,0100,1334.23,Delec Ltd,133887,14/06/2012,10168744
Capital Program ,Fire Risk Assessment,HCE18,Capital Contract Payments,5000,194.01,Delec Ltd,133887,14/06/2012,10168744
Housing Revenue Account ,Unplanned Maintenance and Repair,UMR00,R&M External Contractors,0100,847.07,Delec Ltd,133887,28/06/2012,10169360
Capital Program ,Disabled Adaptations,HCR01,Capital Contract Payments,5000,76.86,Delec Ltd,133887,28/06/2012,10169360
Housing Revenue Account ,Unplanned Maintenance and Repair,UMR00,R&M External Contractors,0100,1616.87,Delec Ltd,133887,28/06/2012,10169361
Resources & Corporate Governance ,Garage Internal,WVR01,Materials,0303,957.20,Brenntag UK Limited,135098,21/06/2012,10168902
Capital Program ,Pettiver Crescent,PCH00,Capital Contract Payments,5000,4700.00,REDACTED PERSONAL DATA,135448,14/06/2012,10168959
Sustainable Environment ,Caldecott Park/Town Centre Area,PKS00,External Contractor & Operator,0742,610.00,Elliott Group Ltd,135652,21/06/2012,10169087
Housing Revenue Account ,Alfred Green Close AP,AGP01,Electricity,0130,1013.79,Southern Electric,135653,21/06/2012,10167647
Housing Revenue Account ,Dickinson Court AP,AGP03,Electricity,0130,34.39,Southern Electric,135653,21/06/2012,10167647
Housing Revenue Account ,Duffy Place AP,AGP04,Electricity,0130,-20.46,Southern Electric,135653,21/06/2012,10167647
Housing Revenue Account ,John Thwaites Close AP,AGP08,Electricity,0130,260.78,Southern Electric,135653,21/06/2012,10167647
Housing Revenue Account ,Tanser Court AP,AGP17,Electricity,0130,580.83,Southern Electric,135653,21/06/2012,10167647
Housing Revenue Account ,Eliot Court AP,AGP25,Electricity,0130,124.40,Southern Electric,135653,21/06/2012,10167647
Housing Revenue Account ,Hirst Close AP,AGP33,Electricity,0130,-100.71,Southern Electric,135653,21/06/2012,10167647
Housing Revenue Account ,Assheton Close AP,AGP36,Electricity,0130,138.51,Southern Electric,135653,21/06/2012,10167647
Housing Revenue Account ,Bennett Court/Warwick Road AP,AGP38,Electricity,0130,26.42,Southern Electric,135653,21/06/2012,10167647
Housing Revenue Account ,Deepmore Road/Lytham Road AP,AGP42,Electricity,0130,436.79,Southern Electric,135653,21/06/2012,10167647
Housing Revenue Account ,Edmondson Close Dunchurch AP,AGP44,Electricity,0130,487.94,Southern Electric,135653,21/06/2012,10167647
Housing Revenue Account ,Harold Cox Place AP,AGP51,Electricity,0130,248.39,Southern Electric,135653,21/06/2012,10167647
Housing Revenue Account ,Lever Road I AP,AGP57,Electricity,0130,101.85,Southern Electric,135653,21/06/2012,10167647
Housing Revenue Account ,Meadow Way/Primrose Court AP,AGP58,Electricity,0130,-5062.15,Southern Electric,135653,21/06/2012,10167647
Housing Revenue Account ,Parkfield Road/Lea Crescent AP,AGP71,Electricity,0130,131.58,Southern Electric,135653,21/06/2012,10167647
Housing Revenue Account ,Miscellaneous AP,AGP99,Electricity,0130,41.26,Southern Electric,135653,21/06/2012,10167647
Sustainable Inclusive Communities,Housing Options Team,HOT00,Electricity,0130,87.57,Southern Electric,135653,21/06/2012,10167647
Housing Revenue Account ,Supervision and Management General,MAN00,Electricity,0130,198.44,Southern Electric,135653,21/06/2012,10167647
Housing Revenue Account ,Robotham Close AP,AGP11,Electricity,0130,221.24,Southern Electric,135653,21/06/2012,10169228
Housing Revenue Account ,Stretton Court AP,AGP13,Electricity,0130,274.76,Southern Electric,135653,21/06/2012,10169228
Housing Revenue Account ,Hirst Close AP,AGP33,Electricity,0130,431.32,Southern Electric,135653,21/06/2012,10169228
Housing Revenue Account ,Brookside Pailton AP,AGP40,Electricity,0130,211.35,Southern Electric,135653,21/06/2012,10169228
Housing Revenue Account ,Great Balance Brinklow AP,AGP48,Electricity,0130,76.67,Southern Electric,135653,21/06/2012,10169228
Housing Revenue Account ,Meadow Way/Primrose Court AP,AGP58,Electricity,0130,43.83,Southern Electric,135653,21/06/2012,10169228
Housing Revenue Account ,Norman Road AP,AGP60,Electricity,0130,27.70,Southern Electric,135653,21/06/2012,10169228
Housing Revenue Account ,Patterdale AP,AGP61,Electricity,0130,750.58,Southern Electric,135653,21/06/2012,10169228
Housing Revenue Account ,Parkfield Road/Lea Crescent AP,AGP71,Electricity,0130,195.30,Southern Electric,135653,21/06/2012,10169228
Housing Revenue Account ,Supervision and Management General,MAN00,Electricity,0130,120.67,Southern Electric,135653,21/06/2012,10169228
,Balance Sheet,BS,Car Loan Scheme,9261,7995.00,Wycliffe Rugby,136394,28/06/2012,10169517
Resources & Corporate Governance ,Domestic Waste Collection,WWC00,Vehicle Repair and Maintenance,0200,894.38,Heil Europe Ltd,137390,21/06/2012,10169139
Resources & Corporate Governance ,Borough Elections,ELC00,External Printing,0352,450.00,Smith & Ouzman Ltd,138682,21/06/2012,10167175
Housing Revenue Account ,Sheltered Housing,AGP00,Contract Cleaning,0170,14297.47,Regent Office Care Ltd T/A Regent Cleaning,138934,14/06/2012,10167355
Sustainable Inclusive Communities,Housing Options Team,HOT00,Contract Cleaning,0170,134.76,Regent Office Care Ltd T/A Regent Cleaning,138934,14/06/2012,10167355
Housing Revenue Account ,Estate Management,MAN22,Contract Cleaning,0170,3078.90,Regent Office Care Ltd T/A Regent Cleaning,138934,14/06/2012,10167355
Housing Revenue Account ,Multi-Storey Flats,MSF00,Contract Cleaning,0170,1731.90,Regent Office Care Ltd T/A Regent Cleaning,138934,14/06/2012,10167355
Resources & Corporate Governance ,Town Hall,OFF00,Contract Cleaning,0170,4280.55,Regent Office Care Ltd T/A Regent Cleaning,138934,21/06/2012,10168830
Resources & Corporate Governance ,WSU Depot,WDP00,Contract Cleaning,0170,219.00,Regent Office Care Ltd T/A Regent Cleaning,138934,21/06/2012,10168830
Resources & Corporate Governance ,Grounds Maintenance,WGM00,Contract Cleaning,0170,147.50,Regent Office Care Ltd T/A Regent Cleaning,138934,21/06/2012,10168830
Housing Revenue Account ,Unplanned Maintenance and Repair,UMR00,R&M External Contractors,0100,1915.83,Regent Office Care Ltd T/A Regent Cleaning,138934,14/06/2012,10168976
Housing Revenue Account ,Unplanned Maintenance and Repair,UMR00,R&M External Contractors,0100,650.00,Regent Office Care Ltd T/A Regent Cleaning,138934,28/06/2012,10169363
Housing Revenue Account ,Unplanned Maintenance and Repair,UMR00,R&M External Contractors,0100,566.37,Regent Office Care Ltd T/A Regent Cleaning,138934,28/06/2012,10169364
Housing Revenue Account ,Unplanned Maintenance and Repair,UMR00,R&M External Contractors,0100,2490.00,Rider Levett Bucknall UK Ltd,139918,14/06/2012,10168743
Housing Revenue Account ,Asbestos Surveys,UMR05,R&M External Contractors,0100,260.00,Rider Levett Bucknall UK Ltd,139918,14/06/2012,10168743
Capital Program ,Heating Upgrades,HIM01,Capital Contract Payments,5000,1300.00,Rider Levett Bucknall UK Ltd,139918,14/06/2012,10168743
Capital Program ,Electric to Gas Conversions,HIM04,Capital Contract Payments,5000,1820.00,Rider Levett Bucknall UK Ltd,139918,14/06/2012,10168743
Capital Program ,Bathroom Modifications,HIS01,Capital Contract Payments,5000,4940.00,Rider Levett Bucknall UK Ltd,139918,14/06/2012,10168743
Sustainable Environment ,Caldecott Park/Town Centre Area,PKS00,External Contractor & Operator,0742,685.00,D J Whitlock Plant Hire,140156,14/06/2012,10168862
,User Balance Sheet Cost Centre,BSU,Section Agreements,9865,700.00,D J Whitlock Plant Hire,140156,14/06/2012,10168863
Resources & Corporate Governance ,Maintenance of Customer Services Systems,CIS21,Software Maintenance,0374,4276.44,Midland Software Ltd,140463,07/06/2012,10168489
Housing Revenue Account ,Unplanned Maintenance and Repair,UMR00,R&M External Contractors,0100,91.54,Carpenter Surveyors Ltd,141374,07/06/2012,10167387
Housing Revenue Account ,Property Maintenance,MAN23,External Contractor & Operator,0742,595.01,Carpenter Surveyors Ltd,141374,07/06/2012,10167387
Resources & Corporate Governance ,Customer and Information Strategy,CIS10,Telephone Expenses,0371,793.16,Zen Internet Ltd,141612,07/06/2012,10167946
Resources & Corporate Governance ,Customer and Information Strategy,CIS10,Telephone Expenses,0371,663.08,Zen Internet Ltd,141612,21/06/2012,10169206
Resources & Corporate Governance ,Council Tax and NNDR Collection,CTX01,Telephone Expenses,0371,61.27,Zen Internet Ltd,141612,21/06/2012,10169206
Resources & Corporate Governance ,IT Procurement,CMP00,IT Capital Expenditure,5025,6265.00,Commercial Ltd,143873,14/06/2012,10168175
Resources & Corporate Governance ,IT Procurement,CMP00,IT Capital Expenditure,5025,9441.67,Commercial Ltd,143873,14/06/2012,10168176
Resources & Corporate Governance ,IT Procurement,CMP00,IT Capital Expenditure,5025,26964.25,Commercial Ltd,143873,14/06/2012,10168337
Housing Revenue Account ,Control Centre CCTV,CCE01,External Contractor & Operator,0742,15432.24,Securitas Security Personnel Ltd,145079,07/06/2012,10168327
Capital Program ,Open Spaces Refurbishment,LEI08,Capital Contract Payments,5000,17235.00,Matta Products (UK),145081,07/06/2012,10166226
Sustainable Inclusive Communities,Housing Strategy & Enabling,HSE00,Agency Staff,0003,574.35,James Andrews Recruitment Solutions Ltd,145100,14/06/2012,10168445
Housing Revenue Account ,Property Maintenance,MAN23,Agency Staff,0003,1097.76,James Andrews Recruitment Solutions Ltd,145100,14/06/2012,10168707
Housing Revenue Account ,Property Maintenance,MAN23,Agency Staff,0003,715.95,James Andrews Recruitment Solutions Ltd,145100,14/06/2012,10168938
Capital Program ,Open Spaces Refurbishment,LEI08,Capital Contract Payments,5000,1625.00,KOVA Landscape,145321,07/06/2012,10168121
Resources & Corporate Governance ,Street Cleansing,WSC00,Agency Staff,0003,589.34,Blue Arrow Limited,145492,21/06/2012,10163205
Resources & Corporate Governance ,Street Cleansing,WSC00,Agency Staff,0003,778.39,Blue Arrow Limited,145492,07/06/2012,10167252
Resources & Corporate Governance ,Domestic Waste Collection,WWC00,Agency Staff,0003,70.00,Blue Arrow Limited,145492,07/06/2012,10167252
Resources & Corporate Governance ,Street Cleansing,WSC00,Agency Staff,0003,445.00,Blue Arrow Limited,145492,14/06/2012,10168518
Resources & Corporate Governance ,Domestic Waste Collection,WWC00,Agency Staff,0003,274.20,Blue Arrow Limited,145492,14/06/2012,10168518
Resources & Corporate Governance ,Street Cleansing,WSC00,Agency Staff,0003,515.00,Blue Arrow Limited,145492,14/06/2012,10168932
Resources & Corporate Governance ,Domestic Waste Collection,WWC00,Agency Staff,0003,289.52,Blue Arrow Limited,145492,14/06/2012,10168932
Housing Revenue Account ,Supervision and Management General,MAN00,Publicity & Marketing,0377,979.44,Impress Print,145574,21/06/2012,10169066
Resources & Corporate Governance ,Maintenance of Customer Services Systems,CIS21,Software Maintenance,0374,4159.26,Housing Partners Ltd,145649,14/06/2012,10168727
Resources & Corporate Governance,Corporate Property R&M,CPA01,R&M External Contractors,0100,512.65,EH Services,145677,21/06/2012,10169001
Resources & Corporate Governance ,Highways,WHG00,Materials,0303,470.21,Midland Rock Leicester Ltd,145830,14/06/2012,10168533
Capital Program ,RG Disabled Facilities,REN01,Capital Grants,5014,4885.00,Inhouse Renovations,145963,14/06/2012,10168585
Economy Development & Culture,Art Gallery and Museum,AGM00,Telephone Expenses,0371,2241.29,Virgin Media Business Ltd,146605,14/06/2012,10168722
Economy Development & Culture,Visitor Centre,VSC00,Telephone Expenses,0371,2241.30,Virgin Media Business Ltd,146605,14/06/2012,10168722
Resources & Corporate Governance ,Toilet Cleaning,WBC01,Personal Protective Clothing,0340,17.13,ASKAS,146773,28/06/2012,10169229
Resources & Corporate Governance ,Grounds Maintenance,WGM00,Personal Protective Clothing,0340,179.80,ASKAS,146773,28/06/2012,10169229
Resources & Corporate Governance ,Highways,WHG00,Personal Protective Clothing,0340,25.69,ASKAS,146773,28/06/2012,10169229
Resources & Corporate Governance ,Street Cleansing,WSC00,Personal Protective Clothing,0340,205.44,ASKAS,146773,28/06/2012,10169229
Resources & Corporate Governance ,Garage Internal,WVR01,Personal Protective Clothing,0340,34.25,ASKAS,146773,28/06/2012,10169229
Resources & Corporate Governance ,Domestic Waste Collection,WWC00,Personal Protective Clothing,0340,359.59,ASKAS,146773,28/06/2012,10169229
Resources & Corporate Governance ,Trade Waste Collection,WWC01,Personal Protective Clothing,0340,34.25,ASKAS,146773,28/06/2012,10169229
Resources & Corporate Governance,Handy man,WHM00,Agency Staff,0003,54.39,Fresh Recruitment Solutions (FRS) Ltd,146784,07/06/2012,10167657
Resources & Corporate Governance ,Street Cleansing,WSC00,Agency Staff,0003,219.60,Fresh Recruitment Solutions (FRS) Ltd,146784,07/06/2012,10167657
Resources & Corporate Governance ,Domestic Waste Collection,WWC00,Agency Staff,0003,183.23,Fresh Recruitment Solutions (FRS) Ltd,146784,07/06/2012,10167657
Resources & Corporate Governance ,Domestic Waste Collection,WWC00,Agency Staff,0003,195.61,Fresh Recruitment Solutions (FRS) Ltd,146784,07/06/2012,10168223
Resources & Corporate Governance ,Trade Waste Collection,WWC01,Agency Staff,0003,365.98,Fresh Recruitment Solutions (FRS) Ltd,146784,07/06/2012,10168223
Resources & Corporate Governance,Handy man,WHM00,Agency Staff,0003,431.06,Fresh Recruitment Solutions (FRS) Ltd,146784,14/06/2012,10168797
Resources & Corporate Governance ,Domestic Waste Collection,WWC00,Agency Staff,0003,524.07,Fresh Recruitment Solutions (FRS) Ltd,146784,21/06/2012,10169027
Resources & Corporate Governance ,Domestic Waste Collection,WWC00,Agency Staff,0003,422.37,Fresh Recruitment Solutions (FRS) Ltd,146784,21/06/2012,10169031
Resources & Corporate Governance ,Domestic Waste Collection,WWC00,Agency Staff,0003,529.50,Fresh Recruitment Solutions (FRS) Ltd,146784,21/06/2012,10169032
Resources & Corporate Governance ,Domestic Waste Collection,WWC00,Agency Staff,0003,650.01,Fresh Recruitment Solutions (FRS) Ltd,146784,21/06/2012,10169034
Resources & Corporate Governance ,Domestic Waste Collection,WWC00,Agency Staff,0003,524.07,Fresh Recruitment Solutions (FRS) Ltd,146784,21/06/2012,10169037
Resources & Corporate Governance,Handy man,WHM00,Agency Staff,0003,431.06,Fresh Recruitment Solutions (FRS) Ltd,146784,21/06/2012,10169240
Economy Development & Culture,AGM Exhibitions/Outreach,AGM02,Other Miscellaneous Expenses,0444,6164.41,Vertigo Creative Studio Ltd,146896,28/06/2012,10169379
Capital Program ,Pettiver Crescent,PCH00,Capital Contract Payments,5000,1000.00,REDACTED PERSONAL DATA,146962,14/06/2012,10168875
Economy Development & Culture,Art Gallery and Museum,AGM00,Postage & Distribution,0370,95.79,TNT Post Midlands Ltd,146983,14/06/2012,10168502
Economy Development & Culture,Building Control Services,BCS00,Postage & Distribution,0370,4.51,TNT Post Midlands Ltd,146983,14/06/2012,10168502
Economy Development & Culture,Building Regulation Fee Earning Account,BCS99,Postage & Distribution,0370,5.99,TNT Post Midlands Ltd,146983,14/06/2012,10168502
Resources & Corporate Governance,Central Business Support Services,CSS15,Postage & Distribution,0370,60.86,TNT Post Midlands Ltd,146983,14/06/2012,10168502
Resources & Corporate Governance ,Council Tax and NNDR Collection,CTX01,Postage & Distribution,0370,140.02,TNT Post Midlands Ltd,146983,14/06/2012,10168502
Resources & Corporate Governance ,Electoral Registration,ERG00,Postage & Distribution,0370,54.37,TNT Post Midlands Ltd,146983,14/06/2012,10168502
Sustainable Inclusive Communities,Housing Benefit Administration,HBA00,Postage & Distribution,0370,118.33,TNT Post Midlands Ltd,146983,14/06/2012,10168502
Housing Revenue Account ,Supervision and Management General,MAN00,Postage & Distribution,0370,1136.11,TNT Post Midlands Ltd,146983,14/06/2012,10168502
Economy Development & Culture,Planning General/Income,PLN00,Postage & Distribution,0370,49.77,TNT Post Midlands Ltd,146983,14/06/2012,10168502
Resources & Corporate Governance ,General Administration,WAD00,Postage & Distribution,0370,7.04,TNT Post Midlands Ltd,146983,14/06/2012,10168502
Economy Development & Culture,Art Gallery and Museum,AGM00,Postage & Distribution,0370,0.57,TNT Post Midlands Ltd,146983,14/06/2012,10168505
Economy Development & Culture,Building Control Services,BCS00,Postage & Distribution,0370,7.48,TNT Post Midlands Ltd,146983,14/06/2012,10168505
Economy Development & Culture,Building Regulation Fee Earning Account,BCS99,Postage & Distribution,0370,9.91,TNT Post Midlands Ltd,146983,14/06/2012,10168505
Resources & Corporate Governance,Central Business Support Services,CSS15,Postage & Distribution,0370,43.41,TNT Post Midlands Ltd,146983,14/06/2012,10168505
Resources & Corporate Governance ,Council Tax and NNDR Collection,CTX01,Postage & Distribution,0370,196.36,TNT Post Midlands Ltd,146983,14/06/2012,10168505
Resources & Corporate Governance ,Electoral Registration,ERG00,Postage & Distribution,0370,29.92,TNT Post Midlands Ltd,146983,14/06/2012,10168505
Sustainable Inclusive Communities,Housing Benefit Administration,HBA00,Postage & Distribution,0370,176.87,TNT Post Midlands Ltd,146983,14/06/2012,10168505
Housing Revenue Account ,Supervision and Management General,MAN00,Postage & Distribution,0370,192.09,TNT Post Midlands Ltd,146983,14/06/2012,10168505
Economy Development & Culture,Planning General/Income,PLN00,Postage & Distribution,0370,72.96,TNT Post Midlands Ltd,146983,14/06/2012,10168505
Resources & Corporate Governance ,General Administration,WAD00,Postage & Distribution,0370,5.41,TNT Post Midlands Ltd,146983,14/06/2012,10168505
Economy Development & Culture,Building Control Services,BCS00,Postage & Distribution,0370,4.94,TNT Post Midlands Ltd,146983,21/06/2012,10168813
Economy Development & Culture,Building Regulation Fee Earning Account,BCS99,Postage & Distribution,0370,6.55,TNT Post Midlands Ltd,146983,21/06/2012,10168813
Resources & Corporate Governance,Central Business Support Services,CSS15,Postage & Distribution,0370,51.62,TNT Post Midlands Ltd,146983,21/06/2012,10168813
Resources & Corporate Governance ,Council Tax and NNDR Collection,CTX01,Postage & Distribution,0370,165.14,TNT Post Midlands Ltd,146983,21/06/2012,10168813
Resources & Corporate Governance ,Electoral Registration,ERG00,Postage & Distribution,0370,85.85,TNT Post Midlands Ltd,146983,21/06/2012,10168813
Sustainable Inclusive Communities,Housing Benefit Administration,HBA00,Postage & Distribution,0370,147.53,TNT Post Midlands Ltd,146983,21/06/2012,10168813
Housing Revenue Account ,Supervision and Management General,MAN00,Postage & Distribution,0370,76.72,TNT Post Midlands Ltd,146983,21/06/2012,10168813
Resources & Corporate Governance ,General Administration,WAD00,Postage & Distribution,0370,6.75,TNT Post Midlands Ltd,146983,21/06/2012,10168813
Housing Revenue Account ,Property Maintenance,MAN23,Other Miscellaneous Expenses,0444,470.00,Deccaprint,147039,07/06/2012,10168295
Housing Revenue Account ,Gas Heating Systems,UMR01,R&M External Contractors,0100,34414.55,Integral UK Ltd,147080,07/06/2012,10168365
Housing Revenue Account ,Unplanned Maintenance and Repair,UMR00,R&M External Contractors,0100,787.42,Integral UK Ltd,147080,07/06/2012,10168470
Housing Revenue Account ,Gas Heating Systems,UMR01,R&M External Contractors,0100,1870.00,Integral UK Ltd,147080,07/06/2012,10168470
Housing Revenue Account ,Carbon Monoxide Detectors,UMR07,R&M External Contractors,0100,42.27,Integral UK Ltd,147080,07/06/2012,10168470
Resources & Corporate Governance ,Customer and Information Strategy,CIS10,Hardware Maintenance,0376,197.00,Sapphire Technologies Ltd,147128,21/06/2012,10168929
Resources & Corporate Governance ,IT Procurement,CMP00,IT Capital Expenditure,5025,818.25,Sapphire Technologies Ltd,147128,21/06/2012,10168929
Resources & Corporate Governance ,Domestic Waste Collection,WWC00,External Contractor & Operator,0742,450.00,James Baxter Haulage Ltd,147159,21/06/2012,10168951
Capital Program ,Queen's Diamond Jubilee Leisure Centre Project,LEI03,Capital Contract Payments,5000,1100.00,B3 Architects,147190,07/06/2012,10168184
Capital Program ,Queen's Diamond Jubilee Leisure Centre Project,LEI03,Capital Contract Payments,5000,700.00,B3 Architects,147190,07/06/2012,10168320
Capital Program ,Queen's Diamond Jubilee Leisure Centre Project,LEI03,Capital Contract Payments,5000,4428.75,B3 Architects,147190,14/06/2012,10168578
Economy Development & Culture,Positive Futures,LSD04,Development Activities,0450,913.35,YHA (England & Wales) Ltd,147242,14/06/2012,10168588
Resources & Corporate Governance,Handy man,WHM00,Materials,0303,891.76,ECA Supplies (Coventry) Limited,147276,28/06/2012,10167250
Resources & Corporate Governance,Handy man,WHM00,Materials,0303,462.59,ECA Supplies (Coventry) Limited,147276,28/06/2012,10168557
Resources & Corporate Governance,Handy man,WHM00,Materials,0303,962.00,ECA Supplies (Coventry) Limited,147276,21/06/2012,10168559
Resources & Corporate Governance,Handy man,WHM00,External Contractor & Operator,0742,588.00,Stephen Lamb Fencing,147298,07/06/2012,10168516
Resources & Corporate Governance,Handy man,WHM00,External Contractor & Operator,0742,504.00,Stephen Lamb Fencing,147298,21/06/2012,10169155
Resources & Corporate Governance,Handy man,WHM00,External Contractor & Operator,0742,546.00,Stephen Lamb Fencing,147298,28/06/2012,10169417
Resources & Corporate Governance ,Domestic Waste Collection,WWC00,Contract Hire,0220,435.00,Trash UK Limited,147379,21/06/2012,10168520
Resources & Corporate Governance ,Domestic Waste Collection,WWC00,Contract Hire,0220,1728.23,Trash UK Limited,147379,21/06/2012,10168991
Resources & Corporate Governance,Handy man,WHM00,Materials,0303,802.26,Edwards Buildbase,147387,14/06/2012,10167135
Resources & Corporate Governance,Corporate Property R&M,CPA01,R&M External Contractors,0100,516.16,Arden Construction Ltd,147430,21/06/2012,10168868
Resources & Corporate Governance,Handy man,WHM00,Materials,0303,773.00,Robert Pochin Limited,147536,14/06/2012,10168563
Resources & Corporate Governance,Handy man,WHM00,Materials,0303,433.94,Robert Pochin Limited,147536,14/06/2012,10168564
Capital Program ,Open Spaces Refurbishment,LEI08,Capital Contract Payments,5000,4990.00,Gavin Jones (Midlands) Ltd,147569,28/06/2012,10169331
Resources & Corporate Governance ,Corporate Property Management,CPM00,Asset Management Expenses,0448,2700.00,Brown & Cockerill Estate Agents,147578,07/06/2012,10168306
Resources & Corporate Governance,Corporate Property R&M,CPA01,R&M External Contractors,0100,1075.00,S R Turton Ltd,147729,07/06/2012,10168372
Resources & Corporate Governance ,Grounds Maintenance,WGM00,Vehicle Repair and Maintenance,0200,627.03,Chris Tallis Farm Machinery Limited,147758,21/06/2012,10167202
Resources & Corporate Governance ,Grounds Maintenance,WGM00,Vehicle Repair and Maintenance,0200,1515.83,Chris Tallis Farm Machinery Limited,147758,21/06/2012,10169011
Capital Program ,Viaduct Cycleways,CYC02,Capital Contract Payments,5000,12337.22,Currall Lewis & Martin (Construction) Ltd,147769,07/06/2012,10168456
Capital Program ,Viaduct Cycleways,CYC02,Capital Contract Payments,5000,25140.59,Currall Lewis & Martin (Construction) Ltd,147769,07/06/2012,10168457
Resources & Corporate Governance ,Highways,WHG00,External Contractor & Operator,0742,61544.06,Currall Lewis & Martin (Construction) Ltd,147769,07/06/2012,10168458
Resources & Corporate Governance ,Highways,WHG00,External Contractor & Operator,0742,8372.83,Currall Lewis & Martin (Construction) Ltd,147769,07/06/2012,10168459
Sustainable Environment,Regulatory Services,REG00,External Contractor & Operator,0742,750.00,Martec Environmental Consultants Ltd,147813,07/06/2012,10168383
Resources & Corporate Governance,Handy man,WHM00,External Contractor & Operator,0742,504.00,D Wesley Contracts,147871,21/06/2012,10169156
Resources & Corporate Governance,Handy man,WHM00,External Contractor & Operator,0742,546.00,D Wesley Contracts,147871,28/06/2012,10169471
Sustainable Environment ,Caldecott Park/Town Centre Area,PKS00,External Contractor & Operator,0742,3000.00,Event Solutions Ltd,147877,14/06/2012,10168930
Resources & Corporate Governance,Handy man,WHM00,External Contractor & Operator,0742,537.00,Coventry Garage Doors,147883,21/06/2012,10169016
Capital Program ,Queen's Diamond Jubilee Leisure Centre Project,LEI03,Capital Contract Payments,5000,506806.57,Shepherd Construction Ltd,148014,18/06/2012,10168696
Resources & Corporate Governance,Handy man,WHM00,External Contractor & Operator,0742,525.00,Dean Hudson,148035,14/06/2012,10168888
Resources & Corporate Governance,Handy man,WHM00,External Contractor & Operator,0742,540.00,Dean Hudson,148035,21/06/2012,10169239
Resources & Corporate Governance,Handy man,WHM00,External Contractor & Operator,0742,555.00,Dean Hudson,148035,28/06/2012,10169483
Resources & Corporate Governance,Handy man,WHM00,External Contractor & Operator,0742,600.00,Ford Tucker,148036,07/06/2012,10168515
Resources & Corporate Governance,Handy man,WHM00,External Contractor & Operator,0742,626.25,Ford Tucker,148036,28/06/2012,10169479
Capital Program ,Vehicle Workshop Extension,VWE00,Capital Contract Payments,5000,1853.00,ST Consult,148059,14/06/2012,10168803
Capital Program ,Vehicle Workshop Extension,VWE00,Capital Contract Payments,5000,4279.50,ST Consult,148059,14/06/2012,10168804
Sustainable Environment ,Caldecott Park/Town Centre Area,PKS00,Consultation,0378,1000.00,Halo FX Limited,148073,14/06/2012,10168535
Sustainable Environment ,Caldecott Park/Town Centre Area,PKS00,External Contractor & Operator,0742,2154.00,Halo FX Limited,148073,14/06/2012,10168535
Resources & Corporate Governance ,Grounds Maintenance,WGM00,Tools,0304,850.00,Outdoor Power Tools Limited,148112,07/06/2012,10168116
Resources & Corporate Governance ,Grounds Maintenance,WGM00,Tools,0304,850.00,Outdoor Power Tools Limited,148112,28/06/2012,10169325
Capital Program ,Youth Club Development,CGR05,Capital Grants,5014,3550.00,Fareham Youth Trust,148136,07/06/2012,10168399
Sustainable Environment ,Caldecott Park/Town Centre Area,PKS00,External Contractor & Operator,0742,3496.75,Air Atlantique Ltd,148138,07/06/2012,10168448
Capital Program ,Disabled Adaptations,HCR01,Capital Contract Payments,5000,3739.04,Kingkraft Ltd,148141,28/06/2012,10168583
Resources & Corporate Governance ,Head of Customer and Information Services,CIS00,Recruitment Expenses,0012,35.00,Team Prevent UK Ltd,148151,21/06/2012,10168943
Resources & Corporate Governance ,Support Services,CIS20,Recruitment Expenses,0012,19.95,Team Prevent UK Ltd,148151,21/06/2012,10168943
Economy Development & Culture,Car Parks General,CPK01,Recruitment Expenses,0012,3.99,Team Prevent UK Ltd,148151,21/06/2012,10168943
Economy Development & Culture,Decrim. of Car Parking on street parking,DPE02,Recruitment Expenses,0012,15.96,Team Prevent UK Ltd,148151,21/06/2012,10168943
Resources & Corporate Governance ,Grounds Maintenance,WGM00,Recruitment Expenses,0012,120.00,Team Prevent UK Ltd,148151,21/06/2012,10168943
Resources & Corporate Governance ,TREE WORKS,WGM01,Recruitment Expenses,0012,214.95,Team Prevent UK Ltd,148151,21/06/2012,10168943
Resources & Corporate Governance ,Caldecott Park Cafe,WGM02,Recruitment Expenses,0012,19.95,Team Prevent UK Ltd,148151,21/06/2012,10168943
Housing Revenue Account ,Sheltered Housing,AGP00,Employee wellbeing/Other employee expenses,0021,40.00,Team Prevent UK Ltd,148151,21/06/2012,10168943
Sustainable Environment ,Street Scene,ENV30,Employee wellbeing/Other employee expenses,0021,40.00,Team Prevent UK Ltd,148151,21/06/2012,10168943
Economy Development & Culture,Planning Control,PLN01,Employee wellbeing/Other employee expenses,0021,40.00,Team Prevent UK Ltd,148151,21/06/2012,10168943
Resources & Corporate Governance ,Grounds Maintenance,WGM00,Employee wellbeing/Other employee expenses,0021,85.00,Team Prevent UK Ltd,148151,21/06/2012,10168943
Resources & Corporate Governance,Handy man,WHM00,Employee wellbeing/Other employee expenses,0021,200.00,Team Prevent UK Ltd,148151,21/06/2012,10168943
Resources & Corporate Governance ,Street Cleansing,WSC00,Employee wellbeing/Other employee expenses,0021,165.00,Team Prevent UK Ltd,148151,21/06/2012,10168943
Resources & Corporate Governance ,Domestic Waste Collection,WWC00,Employee wellbeing/Other employee expenses,0021,69.00,Team Prevent UK Ltd,148151,21/06/2012,10168943
Economy Development & Culture,Art Gallery and Museum,AGM00,Recruitment Expenses,0012,37.45,Team Prevent UK Ltd,148151,21/06/2012,10168944
Resources & Corporate Governance ,Head of Customer and Information Services,CIS00,Recruitment Expenses,0012,19.95,Team Prevent UK Ltd,148151,21/06/2012,10168944
Resources & Corporate Governance,Customer Support Services,CSS00,Recruitment Expenses,0012,39.90,Team Prevent UK Ltd,148151,21/06/2012,10168944
Economy Development & Culture,Sports Development,LSD06,Recruitment Expenses,0012,19.95,Team Prevent UK Ltd,148151,21/06/2012,10168944
Resources & Corporate Governance ,Financial Services,RES10,Recruitment Expenses,0012,37.45,Team Prevent UK Ltd,148151,21/06/2012,10168944
Sustainable Inclusive Communities,Woodside Park,TVR00,Recruitment Expenses,0012,37.45,Team Prevent UK Ltd,148151,21/06/2012,10168944
Resources & Corporate Governance ,Grounds Maintenance,WGM00,Recruitment Expenses,0012,39.90,Team Prevent UK Ltd,148151,21/06/2012,10168944
Resources & Corporate Governance ,TREE WORKS,WGM01,Recruitment Expenses,0012,295.00,Team Prevent UK Ltd,148151,21/06/2012,10168944
Housing Revenue Account ,Sheltered Housing,AGP00,Employee wellbeing/Other employee expenses,0021,85.00,Team Prevent UK Ltd,148151,21/06/2012,10168944
Economy Development & Culture,Building Control Services,BCS00,Employee wellbeing/Other employee expenses,0021,36.55,Team Prevent UK Ltd,148151,21/06/2012,10168944
Economy Development & Culture,Building Regulation Fee Earning Account,BCS99,Employee wellbeing/Other employee expenses,0021,48.45,Team Prevent UK Ltd,148151,21/06/2012,10168944
Economy Development & Culture,Car Parks General,CPK01,Employee wellbeing/Other employee expenses,0021,68.50,Team Prevent UK Ltd,148151,21/06/2012,10168944
Resources & Corporate Governance,Customer Support Services,CSS00,Employee wellbeing/Other employee expenses,0021,85.00,Team Prevent UK Ltd,148151,21/06/2012,10168944
Economy Development & Culture,Decrim. of Car Parking on street parking,DPE02,Employee wellbeing/Other employee expenses,0021,274.00,Team Prevent UK Ltd,148151,21/06/2012,10168944
Sustainable Inclusive Communities,Housing Benefit Administration,HBA00,Employee wellbeing/Other employee expenses,0021,137.50,Team Prevent UK Ltd,148151,21/06/2012,10168944
Housing Revenue Account ,Property Maintenance,MAN23,Employee wellbeing/Other employee expenses,0021,170.00,Team Prevent UK Ltd,148151,21/06/2012,10168944
Resources & Corporate Governance ,Grounds Maintenance,WGM00,Employee wellbeing/Other employee expenses,0021,190.00,Team Prevent UK Ltd,148151,21/06/2012,10168944
Resources & Corporate Governance ,Garage Salaries,WVR03,Employee wellbeing/Other employee expenses,0021,85.00,Team Prevent UK Ltd,148151,21/06/2012,10168944
Resources & Corporate Governance ,Domestic Waste Collection,WWC00,Employee wellbeing/Other employee expenses,0021,255.00,Team Prevent UK Ltd,148151,21/06/2012,10168944
Resources & Corporate Governance ,Grounds Maintenance,WGM00,Materials,0303,2101.06,Brake Bros Ltd,148172,28/06/2012,10169115
Resources & Corporate Governance ,Caldecott Park Cafe,WGM02,Materials,0303,416.96,Brake Bros Ltd,148172,28/06/2012,10169115
Resources & Corporate Governance ,Caldecott Park Cafe,WGM02,Materials,0303,-545.60,Brake Bros Ltd,148172,28/06/2012,10169557
Sustainable Inclusive Communities,CL Grants,CGS00,Grants To Voluntary Organisations,0720,5000.00,Folly,148194,28/06/2012,10169493
,Balance Sheet,BS,Contributions To NNDR Pool,9476,1051796.00,Department for Communities & Local Govt,,07/06/2012,
,Balance Sheet,BS,Contributions To NNDR Pool,9476,1051796.00,Department for Communities & Local Govt,,19/06/2012,
Resources & Corporate Governance ,"Communications, Consultation and Information Team",BTR20,Consultation,0378,2886.37,,,,
